bitfinex/quotes_SOLUSD_20250403
["timestamp","ask_amount","ask_price","bid_price","bid_amount"]
[1743672489206,0.063,118.27,118.25,0.03]
[1743672490108,0.063,118.27,118.25,20.98150678]
[1743672490610,0.063,118.27,118.26,12.77922992]
[1743672491079,0.063,118.27,118.26,0.28432314]
[1743672492605,0.0001,118.27,118.26,41.59814035]
[1743672492796,0.0001,118.27,118.26,98.14156747]
[1743672492997,0.0001,118.27,118.26,48.01977878]
[1743672493225,0.0001,118.27,118.26,29.37012992]
[1743672494613,0.0001,118.27,118.26,8.74022314]
[1743672494799,0.0001,118.27,118.26,8.59806157]
[1743672495893,0.0001,118.27,118.26,8.74022314]
[1743672498310,0.0001,118.27,118.26,21.23512992]
[1743672498624,0.0001,118.27,118.26,0.28432314]
[1743672498992,0.0001,118.27,118.25,8.4863]
[1743672510019,0.0001,118.27,118.26,8.74022314]
[1743672511606,0.0001,118.27,118.26,21.23512992]
[1743672511928,0.0001,118.27,118.26,8.74022314]
[1743672514111,0.0001,118.27,118.25,0.03]
[1743672515240,0.0001,118.27,118.25,0.03]
[1743672516337,12.49500678,118.27,118.25,0.03]
[1743672517208,12.49490678,118.26,118.25,0.03]
[1743672518339,20.95080678,118.26,118.25,0.03]
[1743672520934,12.49490678,118.26,118.25,0.03]
[1743672521314,20.95080678,118.26,118.25,0.03]
[1743672524950,12.49490678,118.26,118.25,0.03]
[1743672526455,20.95080678,118.26,118.25,0.03]
[1743672536447,12.49490678,118.26,118.25,0.03]
[1743672537070,20.95080678,118.26,118.25,0.03]
[1743672540270,0.0001,118.27,118.25,0.03]
[1743672540474,0.0001,118.27,118.26,12.77922992]
[1743672540641,0.0001,118.27,118.26,0.28432314]
[1743672541266,12.49500678,118.27,118.25,0.03]
[1743672541464,12.49490678,118.26,118.25,0.03]
[1743672542961,20.95080678,118.26,118.25,0.03]
[1743672543553,12.49490678,118.26,118.25,0.03]
[1743672544462,20.95080678,118.26,118.25,0.03]
[1743672546964,12.49490678,118.26,118.25,0.03]
[1743672548647,20.95080678,118.26,118.25,0.03]
[1743672550467,7.3801,118.27,118.25,0.03]
[1743672550770,12.49490678,118.26,118.25,0.03]
[1743672551469,20.95080678,118.26,118.25,0.03]
[1743672553677,12.49490678,118.26,118.25,0.03]
[1743672554754,8.4559,118.26,118.25,0.03]
[1743672555185,8.4559,118.26,118.21,0.03]
[1743672555186,104.47529547,118.26,118.21,0.03]
[1743672555378,12.49490678,118.22,118.21,0.03]
[1743672555569,45.87490678,118.22,118.21,0.03]
[1743672555878,46.01706835,118.22,118.21,0.03]
[1743672556255,45.87490678,118.22,118.21,0.03]
[1743672556575,7.38,118.22,118.21,0.03]
[1743672556773,19.87490678,118.22,118.21,0.03]
[1743672560680,28.33370678,118.22,118.21,0.03]
[1743672561292,19.87490678,118.22,118.21,0.03]
[1743672562468,7.38,118.22,118.21,0.03]
[1743672562782,19.87490678,118.22,118.21,0.03]
[1743672565681,54.47586835,118.22,118.21,0.03]
[1743672571574,54.33370678,118.22,118.21,0.03]
[1743672575407,28.33110678,118.26,118.21,0.03]
[1743672575899,12.49490678,118.25,118.21,0.03]
[1743672576105,19.87490678,118.26,118.21,0.03]
[1743672576304,12.49490678,118.25,118.21,0.03]
[1743672577177,12.49490678,118.25,118.21,8.4895]
[1743672578103,12.49490678,118.24,118.21,8.4895]
[1743672578391,12.49490678,118.23,118.21,0.03]
[1743672582194,12.49490678,118.24,118.21,0.03]
[1743672582995,0.063,118.25,118.21,0.31432314]
[1743672583180,0.063,118.25,118.21,12.80922992]
[1743672583583,0.063,118.25,118.22,12.49490678]
[1743672584496,0.063,118.25,118.23,8.458]
[1743672586388,12.49490678,118.24,118.21,0.31432314]
[1743672586782,12.49490678,118.24,118.21,0.03]
[1743672587195,12.49490678,118.24,118.21,8.4893]
[1743672587398,20.95240678,118.24,118.21,0.03]
[1743672589203,12.49490678,118.23,118.21,0.03]
[1743672591180,20.95240678,118.24,118.21,0.03]
[1743672591603,7.38,118.23,118.21,0.03]
[1743672593026,15.8382,118.23,118.21,0.03]
[1743672593303,7.38,118.23,118.21,0.03]
[1743672598814,12.49490678,118.24,118.21,0.03]
[1743672599011,12.49490678,118.24,118.21,0.31432314]
[1743672599998,20.95230678,118.24,118.21,0.31432314]
[1743672600197,20.95230678,118.24,118.21,0.03]
[1743672600526,28.39490678,118.25,118.21,0.03]
[1743672600900,12.49490678,118.24,118.21,0.03]
[1743672601411,20.95240678,118.24,118.21,0.03]
[1743672601923,12.49490678,118.23,118.21,0.03]
[1743672602498,20.95240678,118.24,118.21,0.03]
[1743672602701,15.9,118.25,118.21,0.03]
[1743672603002,12.49490678,118.24,118.21,0.03]
[1743672603520,7.443,118.25,118.21,12.80922992]
[1743672603704,0.063,118.25,118.22,12.49490678]
[1743672604215,0.063,118.25,118.21,18.86202992]
[1743672605418,0.063,118.25,118.21,27.32082992]
[1743672605716,12.55790678,118.25,118.21,14.82592314]
[1743672606226,12.55790678,118.25,118.21,0.03]
[1743672606402,12.49490678,118.24,118.21,0.03]
[1743672606596,12.49490678,118.23,118.21,0.03]
[1743672607295,19.87490678,118.24,118.21,0.03]
[1743672607704,0.063,118.25,118.21,12.80922992]
[1743672607920,0.063,118.25,118.23,0.28432314]
[1743672608100,0.063,118.25,118.23,12.49490678]
[1743672608299,0.063,118.25,118.22,12.77922992]
[1743672609721,0.063,118.25,118.24,0.28432314]
[1743672610219,0.063,118.25,118.24,12.77922992]
[1743672612627,0.063,118.25,118.24,0.28432314]
[1743672616406,0.063,118.25,118.21,27.13874886]
[1743672619025,0.063,118.25,118.24,0.28432314]
[1743672619826,0.063,118.25,118.24,12.49490678]
[1743672620122,0.063,118.25,118.24,21.23652992]
[1743672620626,0.063,118.25,118.24,8.74162314]
[1743672620921,0.063,118.25,118.24,0.28432314]
[1743672622108,0.063,118.25,118.24,8.74162314]
[1743672622508,0.063,118.25,118.24,0.28432314]
[1743672622909,0.063,118.25,118.24,39.88617878]
[1743672623225,0.063,118.25,118.24,47.99227878]
[1743672623728,0.0001,118.25,118.24,48.63444035]
[1743672623920,0.0001,118.27,118.25,19.07613357]
[1743672624120,0.0001,118.27,118.26,12.77922992]
[1743672624720,0.0001,118.27,118.26,21.23512992]
[1743672625536,0.0001,118.27,118.26,90.00656747]
[1743672626430,0.0001,118.27,118.26,40.02694035]
[1743672627236,0.0001,118.27,118.26,27.389872]
[1743672627432,0.0001,118.27,118.26,39.88477878]
[1743672627755,184.17386157,118.36,118.29,0.14216157]
[1743672627756,1.6539,118.36,118.29,0.14216157]
[1743672627913,14.14880678,118.36,118.31,12.77922992]
[1743672628241,14.14880678,118.36,118.3,12.49490678]
[1743672628242,12.49490678,118.35,118.3,12.49490678]
[1743672628432,12.49490678,118.34,118.3,0.28432314]
[1743672629317,12.49490678,118.33,118.28,20.56730678]
[1743672629639,0.063,118.27,118.25,20.19500678]
[1743672630036,0.063,118.27,118.26,0.28432314]
[1743672630462,0.063,118.27,118.25,28.65120678]
[1743672630755,0.063,118.27,118.26,0.28432314]
[1743672630937,0.063,118.27,118.26,31.42887878]
[1743672631519,0.063,118.27,118.26,0.28432314]
[1743672631927,0.063,118.27,118.26,31.42887878]
[1743672632513,0.063,118.27,118.26,39.88477878]
[1743672634818,10.1027,118.36,118.26,111.0042059]
[1743672635017,12.49490678,118.34,118.3,0.28432314]
[1743672635233,19.87490678,118.35,118.3,12.77922992]
[1743672635816,12.49490678,118.34,118.3,0.28432314]
[1743672636649,12.49490678,118.34,118.31,8.4523]
[1743672637223,19.87490678,118.35,118.31,8.4523]
[1743672637422,14.14880678,118.36,118.32,0.28432314]
[1743672637840,14.14880678,118.36,118.32,12.77922992]
[1743672638532,14.14880678,118.36,118.32,0.28432314]
[1743672638726,14.14880678,118.36,118.31,0.28432314]
[1743672638727,12.49490678,118.34,118.31,0.28432314]
[1743672639250,10.1027,118.36,118.31,0.28432314]
[1743672639423,12.49490678,118.35,118.31,0.28432314]
[1743672640647,12.49490678,118.35,118.32,8.4516]
[1743672643253,21.57180678,118.36,118.32,8.4516]
[1743672643455,21.57180678,118.36,118.32,20.94650678]
[1743672643952,1.7169,118.36,118.32,42.07560678]
[1743672644456,14.21180678,118.36,118.32,42.07560678]
[1743672645026,14.21180678,118.36,118.32,29.5807]
[1743672646556,14.21180678,118.36,118.32,8.4516]
[1743672650837,14.21180678,118.36,118.31,21.41422314]
[1743672650838,12.49490678,118.34,118.31,8.73632314]
[1743672651154,12.49490678,118.35,118.31,8.73632314]
[1743672652835,12.49490678,118.33,118.3,8.453]
[1743672653452,12.49490678,118.34,118.3,8.453]
[1743672653749,7.423,118.36,118.32,12.49490678]
[1743672653928,0.063,118.36,118.34,8.4502]
[1743672654534,0.063,118.36,118.35,12.77922992]
[1743672655742,0.063,118.36,118.35,8.73382314]
[1743672656552,0.063,118.36,118.34,8.4498]
[1743672658130,0.063,118.36,118.34,0.28432314]
[1743672658542,0.063,118.36,118.32,20.94620678]
[1743672658739,0.063,118.36,118.33,0.28432314]
[1743672658942,12.55790678,118.36,118.33,0.28432314]
[1743672659754,0.063,118.36,118.33,0.28432314]
[1743672660281,0.063,118.36,118.33,8.73512314]
[1743672660476,0.063,118.39,118.35,0.28432314]
[1743672660759,0.063,118.39,118.38,12.77922992]
[1743672661340,0.063,118.39,118.38,31.42887878]
[1743672661541,0.0001,118.39,118.38,89.35856747]
[1743672661759,0.0001,118.39,118.38,16.53952314]
[1743672661940,0.0001,118.39,118.38,8.73162314]
[1743672662142,0.0001,118.39,118.38,21.22652992]
[1743672663361,0.0001,118.39,118.38,39.87617878]
[1743672663861,0.0001,118.39,118.38,46.84393527]
[1743672665559,0.0001,118.4,118.39,0.28432314]
[1743672665773,0.0001,118.4,118.39,27.34318641]
[1743672667640,0.0001,118.4,118.39,35.78978641]
[1743672667855,0.063,118.46,118.43,19.74698641]
[1743672668553,0.063,118.46,118.42,19.46266327]
[1743672668755,0.063,118.46,118.42,0.28432314]
[1743672668960,19.52566327,118.46,118.42,0.28432314]
[1743672670069,27.96776327,118.46,118.42,0.28432314]
[1743672670274,19.46266327,118.43,118.37,21.1195]
[1743672670451,19.46266327,118.42,118.38,19.46266327]
[1743672670652,19.46266327,118.43,118.39,0.28432314]
[1743672670970,19.46266327,118.42,118.37,27.91066327]
[1743672671468,19.46266327,118.41,118.37,8.448]
[1743672671682,19.46266327,118.39,118.35,8.4495]
[1743672671888,19.46266327,118.4,118.36,0.28432314]
[1743672672262,19.46266327,118.4,118.34,8.4799]
[1743672672469,19.46266327,118.39,118.34,27.94256327]
[1743672672669,19.46266327,118.39,118.35,0.28432314]
[1743672673385,7.4,118.4,118.38,8.4473]
[1743672673567,36.81506327,118.43,118.38,27.90996327]
[1743672674085,19.46266327,118.42,118.38,8.4473]
[1743672675588,27.90746327,118.42,118.37,27.91026327]
[1743672675884,19.46266327,118.41,118.37,27.91026327]
[1743672676083,19.46266327,118.4,118.34,0.31432314]
[1743672676283,19.46266327,118.4,118.36,0.28432314]
[1743672676587,19.46266327,118.39,118.34,27.94276327]
[1743672676780,19.46266327,118.4,118.35,19.46266327]
[1743672677675,8.4466,118.39,118.35,27.91206327]
[1743672678883,27.90886327,118.4,118.35,27.91206327]
[1743672680592,19.46266327,118.39,118.35,8.4494]
[1743672681092,19.46266327,118.37,118.34,0.31432314]
[1743672682588,19.46266327,118.36,118.34,0.03]
[1743672682804,27.91166327,118.36,118.34,0.03]
[1743672683678,8.448,118.37,118.34,0.03]
[1743672683889,27.91066327,118.37,118.34,0.03]
[1743672684890,19.46266327,118.36,118.34,0.03]
[1743672687011,19.46266327,118.35,118.34,0.03]
[1743672688474,27.91216327,118.35,118.34,0.03]
[1743672691201,27.91176327,118.36,118.34,0.03]
[1743672696417,27.91176327,118.36,118.34,0.03]
[1743672697690,20.92432843,118.36,118.34,0.03]
[1743672697990,12.47522843,118.36,118.34,0.03]
[1743672699124,15.8083,118.37,118.34,0.03]
[1743672699302,12.47522843,118.36,118.34,0.03]
[1743672700116,20.92412843,118.36,118.34,0.03]
[1743672704141,12.47522843,118.35,118.34,0.03]
[1743672705046,15.8084,118.37,118.34,0.03]
[1743672705359,12.47522843,118.36,118.34,0.03]
[1743672705559,15.8084,118.37,118.34,12.50522843]
[1743672705560,7.36,118.37,118.34,12.50522843]
[1743672705929,7.36,118.37,118.35,8.4495]
[1743672706448,7.36,118.37,118.34,20.95502843]
[1743672706754,7.36,118.37,118.34,8.4798]
[1743672708729,8.447,118.39,118.34,20.95502843]
[1743672708730,20.92222843,118.39,118.34,20.95502843]
[1743672708924,12.47522843,118.4,118.35,12.75955157]
[1743672709178,9.10936157,118.41,118.35,12.75955157]
[1743672709352,12.47522843,118.4,118.35,12.75955157]
[1743672710085,12.47522843,118.4,118.36,8.4488]
[1743672710268,30.02989,118.41,118.36,8.4488]
[1743672711260,12.47522843,118.4,118.36,8.4488]
[1743672711562,20.92132843,118.4,118.36,8.4488]
[1743672712762,12.47522843,118.39,118.35,8.73342314]
[1743672713496,12.47522843,118.39,118.35,8.4491]
[1743672714776,20.92212843,118.39,118.35,8.4491]
[1743672715395,12.47522843,118.38,118.34,8.4798]
[1743672718275,20.92212843,118.39,118.34,20.95502843]
[1743672718687,12.47522843,118.4,118.35,12.75955157]
[1743672718875,19.86522843,118.42,118.37,12.75955157]
[1743672719188,0.03,118.42,118.38,12.47522843]
[1743672719361,20.94972843,118.42,118.37,12.75955157]
[1743672720288,12.50522843,118.42,118.37,12.75955157]
[1743672720487,0.03,118.42,118.39,0.28432314]
[1743672720688,0.03,118.42,118.4,8.4459]
[1743672722772,0.03,118.42,118.4,20.92112843]
[1743672724191,0.03,118.42,118.41,18.86665157]
[1743672724487,0.063,118.46,118.43,18.933972]
[1743672724673,0.063,118.46,118.45,12.47522843]
[1743672725592,0.063,118.46,118.45,12.75955157]
[1743672725754,0.063,118.46,118.45,19.72240476]
[1743672726361,0.063,118.46,118.45,45.72240476]
[1743672726561,0.063,118.46,118.45,54.16470476]
[1743672727098,0.063,118.46,118.45,28.16470476]
[1743672734174,0.063,118.46,118.45,8.72662314]
[1743672734671,0.063,118.46,118.45,0.28432314]
[1743672734870,0.063,118.46,118.45,28.16470476]
[1743672737502,0.063,118.46,118.45,8.72662314]
[1743672738171,0.063,118.46,118.45,28.16470476]
[1743672742084,0.063,118.47,118.46,38.37205362]
[1743672743592,0.063,118.47,118.46,46.81365362]
[1743672744587,0.063,118.47,118.46,8.4416]
[1743672744976,0.063,118.47,118.46,8.72592314]
[1743672745396,0.063,118.47,118.43,80.7]
[1743672745594,0.063,118.47,118.44,8.443]
[1743672745895,0.063,118.47,118.43,27.88148162]
[1743672746073,0.063,118.47,118.44,0.28432314]
[1743672746390,19.50108162,118.47,118.42,27.88218162]
[1743672746596,19.50108162,118.47,118.43,0.28432314]
[1743672747187,19.50108162,118.47,118.41,8.4452]
[1743672747188,19.43808162,118.45,118.41,8.4452]
[1743672747386,19.43808162,118.44,118.39,20.96418162]
[1743672747582,19.43808162,118.44,118.4,0.28432314]
[1743672747781,27.88108162,118.45,118.4,28.02584319]
[1743672747992,27.88108162,118.45,118.4,27.88368162]
[1743672748198,19.43808162,118.44,118.41,0.28432314]
[1743672748603,19.43808162,118.44,118.41,0.14216157]
[1743672749204,27.88108162,118.45,118.41,0.28432314]
[1743672749579,19.43808162,118.45,118.41,0.28432314]
[1743672749915,19.43808162,118.45,118.42,8.4445]
[1743672750623,7.36,118.46,118.43,0.28432314]
[1743672751082,0.063,118.47,118.43,19.72240476]
[1743672752305,19.50108162,118.47,118.44,8.443]
[1743672753503,0.063,118.47,118.44,8.443]
[1743672753803,19.50108162,118.47,118.44,8.443]
[1743672757617,0.063,118.47,118.44,29.5507]
[1743672758298,0.063,118.47,118.45,0.28432314]
[1743672758500,0.063,118.47,118.46,8.4416]
[1743672760416,0.063,118.47,118.45,8.72662314]
[1743672766224,0.063,118.47,118.45,21.17492347]
[1743672767435,0.063,118.47,118.45,8.72662314]
[1743672770446,12.51130033,118.47,118.42,0.063]
[1743672770621,12.44830033,118.44,118.42,0.063]
[1743672770821,12.44830033,118.45,118.42,0.063]
[1743672772355,12.44830033,118.43,118.42,0.063]
[1743672772848,8.4434,118.44,118.42,0.063]
[1743672772849,12.44830033,118.44,118.42,0.063]
[1743672773438,9.0422,118.47,118.42,0.063]
[1743672773643,12.44830033,118.46,118.43,0.28432314]
[1743672774139,19.87130033,118.47,118.43,0.28432314]
[1743672774357,7.423,118.47,118.43,0.28432314]
[1743672774656,19.87130033,118.47,118.44,8.443]
[1743672777154,7.423,118.47,118.44,8.443]
[1743672779059,7.423,118.47,118.44,29.5507]
[1743672780249,0.063,118.47,118.46,12.44830033]
[1743672780451,0.063,118.47,118.46,12.73262347]
[1743672780958,0.063,118.47,118.46,21.17422347]
[1743672781643,0.063,118.47,118.46,8.72592314]
[1743672782568,0.063,118.47,118.46,21.17422347]
[1743672784647,0.063,118.47,118.46,39.82387233]
[1743672786153,0.063,118.47,118.46,8.72592314]
[1743672786451,0.063,118.47,118.46,8.78892314]
[1743672787379,0.063,118.47,118.46,8.64676157]
[1743672787584,0.063,118.47,118.46,8.78892314]
[1743672789065,0.063,118.47,118.46,8.5046]
[1743672790187,0.063,118.47,118.46,0.063]
[1743672794285,19.51271414,118.47,118.46,0.063]
[1743672794582,27.95361414,118.47,118.46,0.063]
[1743672802393,0.063,118.47,118.46,0.063]
[1743672811309,12.51294195,118.47,118.46,0.063]
[1743672811606,20.95384195,118.47,118.46,0.063]
[1743672813101,12.51294195,118.47,118.46,0.063]
[1743672813781,0.063,118.47,118.46,0.20516157]
[1743672814080,0.063,118.49,118.47,18.933972]
[1743672814285,0.063,118.49,118.48,31.38391395]
[1743672814487,0.063,118.49,118.48,12.73426509]
[1743672815688,0.063,118.49,118.48,21.17446509]
[1743672817700,0.063,118.49,118.48,28.15847279]
[1743672817893,0.063,118.51,118.5,26.0]
[1743672818096,0.063,118.51,118.5,64.36792165]
[1743672819308,0.063,118.51,118.5,72.80672165]
[1743672826123,0.063,118.52,118.5,72.80672165]
[1743672826315,0.063,118.52,118.51,19.43394965]
[1743672827103,0.063,118.53,118.51,19.71827279]
[1743672827332,0.063,118.53,118.52,19.43394965]
[1743672828299,0.063,118.53,118.52,27.87124965]
[1743672829997,0.063,118.53,118.52,8.72162314]
[1743672832216,0.063,118.53,118.52,28.15557279]
[1743672838213,0.063,118.53,118.52,46.80522165]
[1743672839825,0.063,118.53,118.52,39.7976123]
[1743672842930,0.063,118.53,118.52,47.9246123]
[1743672843127,0.063,118.53,118.51,8.4377]
[1743672844129,0.063,118.53,118.5,21.21216344]
[1743672844332,0.063,118.53,118.51,0.28432314]
[1743672845207,0.063,118.53,118.51,8.78532314]
[1743672847730,0.063,118.53,118.51,21.21166344]
[1743672848114,0.063,118.53,118.52,12.71066344]
[1743672848616,0.063,118.53,118.52,31.3603123]
[1743672849732,0.063,118.53,118.52,39.7976123]
[1743672852238,0.063,118.53,118.52,21.14796344]
[1743672857027,0.0001,118.53,118.52,40.00277387]
[1743672857355,0.0001,118.54,118.53,19.07613357]
[1743672857646,0.0001,118.54,118.53,31.50247387]
[1743672858052,0.0001,118.57,118.56,45.07613357]
[1743672858218,0.0001,118.57,118.56,57.50247387]
[1743672858955,0.0001,118.57,118.56,47.14516344]
[1743672859137,0.0001,118.57,118.56,8.71882314]
[1743672859555,0.0001,118.57,118.56,21.14516344]
[1743672862464,0.0001,118.57,118.56,47.14516344]
[1743672865263,0.0001,118.57,118.56,21.14516344]
[1743672865643,0.0001,118.57,118.56,28.12987954]
[1743672868845,0.0001,118.57,118.56,0.28432314]
[1743672869881,0.0001,118.57,118.56,8.71882314]
[1743672870666,0.0001,118.57,118.56,0.28432314]
[1743672872476,0.0001,118.57,118.56,8.71882314]
[1743672873075,0.0001,118.57,118.56,0.28432314]
[1743672874051,0.0001,118.57,118.56,8.71882314]
[1743672875560,0.0001,118.57,118.56,0.28432314]
[1743672875964,0.0001,118.57,118.56,8.71882314]
[1743672880862,0.0001,118.57,118.56,8.78182314]
[1743672881080,0.0001,118.57,118.56,0.34732314]
[1743672884998,0.0001,118.57,118.56,8.78182314]
[1743672885573,0.0001,118.57,118.56,28.19287954]
[1743672887685,0.0001,118.57,118.56,39.99421257]
[1743672888786,0.0001,118.57,118.56,21.20240214]
[1743672889089,0.0001,118.57,118.56,8.4975]
[1743672889290,0.0001,118.57,118.56,8.78182314]
[1743672890295,19.760679,118.57,118.56,0.063]
[1743672891797,28.194479,118.57,118.56,0.063]
[1743672892097,19.760679,118.57,118.56,0.063]
[1743672892275,28.194479,118.57,118.56,0.063]
[1743672892803,19.760679,118.57,118.56,0.063]
[1743672895272,12.420679,118.57,118.56,0.063]
[1743672897104,0.0001,118.57,118.56,0.063]
[1743672897304,12.420679,118.57,118.56,0.063]
[1743672899019,20.854479,118.57,118.56,0.063]
[1743672901995,26.0,118.54,118.52,0.063]
[1743672902201,19.760579,118.53,118.52,0.063]
[1743672903232,7.34,118.53,118.52,0.063]
[1743672904444,19.760579,118.53,118.52,0.063]
[1743672904606,28.197179,118.53,118.52,0.063]
[1743672905331,19.760579,118.53,118.52,0.063]
[1743672905902,19.760579,118.56,118.52,0.34732314]
[1743672906108,12.420579,118.56,118.53,8.4366]
[1743672906327,12.420579,118.56,118.52,8.78432314]
[1743672907042,0.0001,118.57,118.54,12.420579]
[1743672907203,0.0001,118.57,118.55,0.28432314]
[1743672908432,0.0001,118.57,118.55,8.71912314]
[1743672908837,0.0001,118.57,118.56,12.420579]
[1743672909833,0.0001,118.57,118.56,12.70490214]
[1743672910833,0.0001,118.57,118.56,21.13940214]
[1743672911232,0.0001,118.57,118.56,39.93121257]
[1743672911705,0.0001,118.57,118.56,46.91496879]
[1743672913211,0.0001,118.57,118.56,66.31930401]
[1743672916339,0.0001,118.57,118.56,66.38230401]
[1743672916642,0.0001,118.57,118.56,46.69364565]
[1743672916827,0.0001,118.57,118.56,46.97796879]
[1743672918444,0.0001,118.57,118.56,27.90183522]
[1743672918750,0.0001,118.57,118.56,8.63966157]
[1743672918939,0.0001,118.57,118.56,28.18615836]
[1743672922860,0.0001,118.57,118.56,28.04399679]
[1743672924264,0.0001,118.57,118.56,28.18615836]
[1743672924464,0.0001,118.57,118.56,46.97796879]
[1743672924645,0.0001,118.57,118.56,66.38230401]
[1743672924968,0.0001,118.57,118.56,147.08230401]
[1743672925267,0.0001,118.57,118.56,154.42230401]
[1743672925846,0.03,118.63,118.62,45.07613357]
[1743672926060,0.03,118.63,118.62,83.88480401]
[1743672927257,0.03,118.63,118.62,45.68865836]
[1743672927553,0.03,118.63,118.62,54.11885836]
[1743672928236,0.03,118.63,118.62,72.91066879]
[1743672931851,7.37,118.69,118.66,0.28432314]
[1743672932757,7.37,118.69,118.66,8.71162314]
[1743672933264,0.03,118.69,118.66,8.71162314]
[1743672934363,8.4553,118.69,118.66,0.28432314]
[1743672934970,27.85963522,118.69,118.66,0.28432314]
[1743672936242,19.40433522,118.67,118.63,0.28432314]
[1743672937665,27.83113522,118.67,118.63,8.71362314]
[1743672937862,27.83113522,118.67,118.63,0.28432314]
[1743672938191,27.83113522,118.67,118.63,8.71372314]
[1743672939175,27.83073522,118.68,118.63,28.11805836]
[1743672940066,19.43433522,118.69,118.65,0.28432314]
[1743672940447,27.85973522,118.69,118.65,0.28432314]
[1743672940777,19.43433522,118.69,118.65,0.28432314]
[1743672940972,0.03,118.69,118.65,19.68865836]
[1743672941351,19.43433522,118.69,118.65,0.28432314]
[1743672941776,19.43433522,118.69,118.67,0.28432314]
[1743672942490,0.03,118.69,118.67,0.28432314]
[1743672947179,0.03,118.69,118.65,27.50383357]
[1743672947708,12.43452021,118.69,118.65,27.50383357]
[1743672950403,20.85992021,118.69,118.65,27.50383357]
[1743672950594,20.85992021,118.69,118.65,0.28432314]
[1743672951096,20.85992021,118.69,118.65,8.71242314]
[1743672951404,0.03,118.69,118.65,39.76659221]
[1743672951697,0.03,118.69,118.67,0.28432314]
[1743672953232,0.03,118.69,118.68,8.71032314]
[1743672954076,0.03,118.69,118.68,0.28432314]
[1743672958420,0.03,118.69,118.68,27.359972]
[1743672958725,0.03,118.69,118.68,46.7381817]
[1743672959399,0.03,118.69,118.68,27.359972]
[1743672960526,0.03,118.69,118.68,8.71032314]
[1743672961715,0.03,118.69,118.68,8.56816157]
[1743672961909,0.03,118.69,118.68,0.14216157]
[1743672962114,0.03,118.69,118.68,0.28432314]
[1743672962415,0.03,118.69,118.68,8.71032314]
[1743672963107,0.03,118.69,118.68,0.28432314]
[1743672965615,0.03,118.69,118.68,8.71032314]
[1743672965813,0.03,118.69,118.68,28.08853284]
[1743672966624,0.03,118.69,118.68,8.71032314]
[1743672968826,0.03,118.69,118.68,0.28432314]
[1743672970526,0.03,118.69,118.68,8.56816157]
[1743672972229,0.03,118.69,118.68,0.28432314]
[1743672973326,0.03,118.69,118.68,8.71032314]
[1743672973836,0.03,118.69,118.68,0.28432314]
[1743672974010,0.03,118.69,118.68,8.71032314]
[1743672974324,19.3782097,118.73,118.69,0.28432314]
[1743672975232,19.3782097,118.73,118.69,8.70902314]
[1743672975529,19.3782097,118.73,118.69,0.28432314]
[1743672975530,19.3782097,118.72,118.69,0.28432314]
[1743672976226,19.3782097,118.72,118.66,66.67365856]
[1743672976408,19.3782097,118.72,118.68,0.28432314]
[1743672977528,19.3782097,118.72,118.69,8.4253]
[1743672980537,12.39739769,118.73,118.7,8.70832314]
[1743672982140,12.39739769,118.72,118.66,39.41004364]
[1743672982440,12.39739769,118.7,118.67,8.71102314]
[1743672982626,12.39739769,118.71,118.67,8.71102314]
[1743672985036,20.82129769,118.71,118.67,8.71102314]
[1743672985246,20.82129769,118.71,118.67,8.77402314]
[1743672985535,12.39739769,118.71,118.67,8.77402314]
[1743672986740,0.03,118.72,118.67,8.77402314]
[1743672986916,12.39739769,118.71,118.67,8.77402314]
[1743672988555,0.03,118.72,118.69,0.28432314]
[1743672988847,0.03,118.72,118.71,0.28432314]
[1743672990552,0.03,118.72,118.71,8.70812314]
[1743672991654,0.03,118.72,118.71,39.75516969]
[1743672995869,0.03,118.72,118.71,39.75516969]
[1743673002768,0.03,118.72,118.71,21.10552083]
[1743673003084,0.03,118.72,118.71,8.70812314]